Cogmind - Beta 12 @@@ ROGUE MODE // 2023.11.26 @ 01:43:31 Player: Roan Result: Destroyed by L-41 Fighter with Axe Performance ------------- Evolutions (3) 1500 Regions Visited (5) 1000 Robots Destroyed (43) 215 Value Destroyed (1589) 1589 Prototype IDs (0) 0 Alien Tech Used (0) 0 Bonus (-86) -86 TOTAL SCORE: 4218 Bonus ------- Follower Combat Kills 159 Friendly Fire -245 Cogmind --------- Core Integrity 0/700 Matter 300/300 Energy 100/100 System Corruption 2% Temperature Cool (0) Movement Core (700) Ox13 Location -7/Factory Parts ------- > --- POWER (2) -------- (None) > --- PROPULSION (4) --- (None) > --- UTILITY (4) ------ High-capacity Storage Unit Target Analyzer > --- WEAPON (3) ------- (None) > --- INVENTORY (20) --- Aluminum Leg Titanium Leg Peak State ------------ > --- POWER ------------ Light Nuclear Core Micro Nuclear Core > --- PROPULSION ------- Carbon-fiber Leg Carbon-fiber Leg Carbon-fiber Leg Carbon-fiber Leg > --- UTILITY ---------- High-capacity Storage Unit Seismic Detector Target Analyzer Improved Shield Generator > --- WEAPON ----------- Gatling Laser Remote Datajack Maul > --- INVENTORY -------- Aluminum Leg Carbon-fiber Leg Carbon-fiber Leg Titanium Leg ECM Suite [Rating: 39] Favorites ----------- Power Light Nuclear Core Engine Improved Ion Engine Power Core Light Nuclear Core Propulsion Aluminum Leg Leg Aluminum Leg Utility Target Analyzer Device Seismic Detector Storage High-capacity Storage Unit Processor Target Analyzer Protection Light Armor Plating Weapon Maul Energy Gun Gatling Laser Ballistic Gun Light Assault Rifle Ballistic Cannon Gauss Cannon Launcher Rocket Launcher Special Weapon Remote Datajack Impact Weapon Maul Build | -11 -10 -9 -9 -8 -7 ------- Run | Jun Mat Mat Min Mat Fac Slots Evolved 6 | . . 2 . 2 2 Power 1 | . . . . . 1 Propulsion 2 | . . 2 . . . Utility 2 | . . . . 2 . Weapon 1 | . . . . . 1 Parts Attached 50 | 5 4 17 1 6 17 Power 8 | 1 1 1 . 1 4 Engine 3 | 1 1 . . . 1 Core 5 | . . 1 . 1 3 Reactor . | . . . . . . Propulsion 20 | 2 . 9 1 1 7 Treads . | . . . . . . Leg 20 | 2 . 9 1 1 7 Wheel . | . . . . . . Hover . | . . . . . . Flight . | . . . . . . Utility 11 | . 2 3 . 3 3 Device 7 | . 1 2 . 1 3 Storage 1 | . . . . 1 . Processor 2 | . 1 . . 1 . Hackware . | . . . . . . Protection 1 | . . 1 . . . Artifact . | . . . . . . Weapon 11 | 2 1 4 . 1 3 Energy Gun 3 | 1 1 . . . 1 Energy Cannon . | . . . . . . Ballistic Gun 2 | 1 . 1 . . . Ballistic Cannon 1 | . . . . . 1 Launcher 2 | . . 2 . . . Special Weapon 1 | . . . . . 1 Impact Weapon 2 | . . 1 . 1 . Slashing Weapon . | . . . . . . Piercing Weapon . | . . . . . . Special Melee Weapon . | . . . . . . Unidentified Prototypes . | . . . . . . Parts Lost 31 | . . 6 . 8 17 Power 6 | . . 1 . 1 4 Propulsion 13 | . . 3 . 3 7 Utility 5 | . . 1 . 2 2 Weapon 7 | . . 1 . 2 4 Highest Loss Streak 9 | . . 2 . 4 9 To Critical Strikes . | . . . . . . Average Slot Usage (%) 85 | . 94 90 100 76 83 Engine 2 | . 14 4 . . . Core 6 | . . 3 11 4 9 Leg 30 | . 28 41 44 24 27 Device 11 | . 11 12 11 13 10 Storage 4 | . . . . 7 7 Processor 6 | . 12 3 . 9 7 Protection 1 | . . 5 11 . . Energy Gun 4 | . 13 3 . . 4 Ballistic Gun 6 | . 14 11 11 8 . Launcher 2 | . . 3 11 4 . Special Weapon 2 | . . . . . 5 Impact Weapon 3 | . . 2 . 2 6 Naked Turns . | . . . . . . Heaviest Build 66 | 5 12 16 16 52 66 Greatest Support 60 | 20 20 40 40 47 60 Greatest Overweight (x) 14 | . . . . 3 14 Average Overweight (x) . | . . . . 1 . Largest Inventory Capacity 20 | 5 5 5 5 20 20 Average Capacity 13 | 5 5 5 5 17 20 Most Carried 7 | 5 5 5 5 4 7 Average Carried 4 | 2 4 4 5 3 4 Final Capacity 20 | 5 5 5 5 20 20 Final Carried 5 | 2 5 5 5 3 2 Class Distribution -------------------- 100% | Mutant Dominant Class ---------------- Mutant | -10/Materials Mutant | -9/Materials Mutant | -9/Mines Mutant | -8/Materials Mutant | -7/Factory Resources | -11 -10 -9 -9 -8 -7 ----------- Run | Jun Mat Mat Min Mat Fac Matter Collected 1131 | 256 38 197 247 . 393 Remotely . | . . . . . . Salvage Created 1714 | 34 116 473 191 178 722 Parts 83 | 1 14 28 8 9 23 Haulers Intercepted . | . . . . . . Recyclers Shooed . | . . . . . . Parts Field Recycled . | . . . . . . Retrieved Matter . | . . . . . . Parts Self-Destructed . | . . . . . . Prevented . | . . . . . . Kills | -11 -10 -9 -9 -8 -7 ------- Run | Jun Mat Mat Min Mat Fac Combat Hostiles Destroyed 34 | 1 2 9 5 3 14 Melee 1 | . . . . . 1 Guns 24 | 1 2 6 2 3 10 Cannons 1 | . . . . . 1 AOE 6 | . . 3 3 . . Classes Destroyed 11 | 1 1 4 1 1 3 Worker 1 | . . . . . 1 Tunneler 1 | . . 1 . . . Recycler 2 | . . 1 . . 1 Operator 1 | . . 1 . . . Watcher 4 | . 2 1 . . 1 Swarmer 3 | . . . . . 3 Grunt 20 | 1 2 6 4 2 5 Brawler 1 | . . . 1 . . Duelist 2 | . . . . 1 1 Sentry 5 | . . 3 . . 2 Programmer 3 | . . . . . 3 Best Kill Streak 5 | 1 2 5 3 2 5 Combat Bots Only 3 | 1 2 3 3 2 3 Max Kills in Single Turn 2 | 1 2 2 2 1 1 Gunslinging 1 | . 1 . . . . Exploded 2 | . . 1 2 . . Melee 1 | . . . . . 1 Uniques/NPCs Destroyed . | . . . . . . Combat | -11 -10 -9 -9 -8 -7 -------- Run | Jun Mat Mat Min Mat Fac Damage Taken 4343 | 44 85 934 143 804 2333 Core 1025 | . . 124 . 183 718 Absorbed by Shields 141 | . . . . . 141 Core Remaining (%) 83 | 100 100 . 69 66 . Volleys Fired 206 | 6 17 83 4 32 64 Largest 2 | 1 2 2 2 2 1 Hottest 80 | 20 60 60 56 56 80 Shots Fired 253 | 6 29 105 8 40 65 Gun 221 | 6 29 94 4 30 58 Cannon 6 | . . . . . 6 Launcher 25 | . . 11 4 10 . Special 1 | . . . . . 1 Kinetic 146 | 6 17 83 4 30 6 Thermal 65 | . 7 . . . 58 Explosive 25 | . . 11 4 10 . Electromagnetic 16 | . 5 11 . . . Robot Hit Streak 15 | 6 7 15 2 11 15 Robot Miss Streak 6 | . 5 4 1 4 6 Penetration Max . | . . . . . . Secondary Targets 1 | . 1 . . . . Max Gunslinging Chain 1 | . 1 . . . . Shots Hit Robots 180 | 6 13 70 4 24 63 Core Hits 102 | 3 8 33 9 11 38 Critical Kills . | . . . . . . Critical Parts Destroyed . | . . . . . . Critical Strikes 2 | . . . . . 2 Blast 2 | . . . . . 2 Melee Attacks 4 | . . . . . 4 Impact 4 | . . . . . 4 Slashing . | . . . . . . Piercing . | . . . . . . Sneak Attacks . | . . . . . . Combat Hostiles . | . . . . . . Follow-up Attacks . | . . . . . . Damage Inflicted 4079 | 42 158 1235 392 721 1531 Guns 2505 | 42 149 708 47 328 1231 Cannons 92 | . . . . . 92 Explosions 1255 | . . 524 345 386 . Melee 208 | . . . . . 208 Ramming 19 | . 9 3 . 7 . Kinetic 1148 | 42 46 593 47 328 92 Thermal 1339 | . 55 53 . . 1231 Explosive 1202 | . . 471 345 386 . Electromagnetic 163 | . 48 115 . . . Impact 208 | . . . . . 208 Slashing . | . . . . . . Piercing . | . . . . . . Highest Corruption 2 | . . . . . 2 Average Corruption 2 | . . . . . 2 Corruption Purged . | . . . . . . Corruption Blocked . | . . . . . . Effects 11 | . . . . . 11 Matter Fused 3 | . . . . . 3 Heat Flow Errors 2 | . . . . . 2 Energy Discharges 1 | . . . . . 1 Parts Rejected 1 | . . . . . 1 Parts Fused 1 | . . . . . 1 Data Loss (minor) 2 | . . . . . 2 Misfires 1 | . . . . . 1 Overload Shots . | . . . . . . Overflow Damage 62 | . . 1 9 14 38 Projectiles . | . . . . . . Explosions 24 | . . 1 9 14 . Melee 38 | . . . . . 38 Knockbacks 3 | . . . . . 3 Impact 3 | . . . . . 3 Kinetic . | . . . . . . Secondary . | . . . . . . Self-Inflicted Damage 260 | . . 80 98 82 . Shots 10 | . . 3 3 4 . Rammed . | . . . . . . Targets Rammed 7 | . 2 3 . 1 1 Kicked 7 | . 2 3 . 1 1 Crushed . | . . . . . . Highest Temperature 482 | 6 88 68 27 6 482 Average Temperature 85 | 6 29 24 23 4 117 Received Heat Transfer 1348 | 24 48 417 27 369 463 Effects 4 | . . . . . 4 Shutdowns 1 | . . . . . 1 Energy Bleed 1 | . . . . . 1 Interference 2 | . . . . . 2 Siege Activations . | . . . . . . Robots Corrupted . | . . . . . . Combat Hostiles . | . . . . . . Parts Fried 2 | . . . . . 2 Impact Corruptions 3 | . . . . . 3 Robots Melted 1 | . . . . . 1 Combat Hostiles 1 | . . . . . 1 Parts Melted 10 | . . . . . 10 Heat Transferred 2875 | . 125 100 . . 2650 Parts Sabotaged . | . . . . . . Parts Stolen . | . . . . . . Parts Stripped . | . . . . . . Power Chain Reactions 1 | . . 1 . . . Missiles Intercepted . | . . . . . . Alert | -11 -10 -9 -9 -8 -7 ------- Run | Jun Mat Mat Min Mat Fac Peak Influence 362 | 20 137 284 268 362 192 Initial 110 | . 13 57 110 104 82 Average 133 | 3 80 168 227 234 80 Maximum Alert Level 1 | . . 1 1 1 . Low Security (%) 79 | 100 100 63 36 45 100 Level 1 20 | . . 36 64 54 . Level 2 . | . . . . . . Level 3 . | . . . . . . Level 4 . | . . . . . . Level 5 . | . . . . . . High Security . | . . . . . . Max Security . | . . . . . . Squads Dispatched 5 | . 1 . 2 1 1 Investigation . | . . . . . . Extermination 1 | . . . . . 1 Reinforcement 2 | . 1 . . 1 . Assault 2 | . . . 2 . . Garrison . | . . . . . . Intercept . | . . . . . . Searches Triggered . | . . . . . . Construction Impeded . | . . . . . . Haulers Reinforced . | . . . . . . Active Scanning Responses . | . . . . . . Cargo Convoy Interrupts . | . . . . . . Stealth | -11 -10 -9 -9 -8 -7 --------- Run | Jun Mat Mat Min Mat Fac Distress Signals 2 | . . 1 . . 1 Communications Jammed . | . . . . . . Distress Signals . | . . . . . . Times Spotted 93 | 1 10 19 6 16 41 Peak Tracking Total 15 | 1 3 5 4 4 15 Tactical Retreats 3 | . . 1 . 1 1 Traps | -11 -10 -9 -9 -8 -7 ------- Run | Jun Mat Mat Min Mat Fac Traps Triggered 3 | . 1 . . . 2 Indirectly . | . . . . . . Trap Hack Attempts . | . . . . . . Triggered . | . . . . . . Disarmed . | . . . . . . Reprogrammed . | . . . . . . Reused . | . . . . . . Traps Extracted . | . . . . . . Installed . | . . . . . . Triggered . | . . . . . . Machines | -11 -10 -9 -9 -8 -7 ---------- Run | Jun Mat Mat Min Mat Fac Machines Disabled 3 | . . 1 . 1 1 Max in Single Turn 1 | . . 1 . 1 1 Machines Repaired . | . . . . . . Machines Sabotaged . | . . . . . . Overloaded Fab Kills . | . . . . . . Hacking | -11 -10 -9 -9 -8 -7 --------- Run | Jun Mat Mat Min Mat Fac Machines Accessed 2 | . 1 . . . 1 Terminals . | . . . . . . Fabricators 1 | . . . . . 1 Repair Stations . | . . . . . . Recycling Units 1 | . 1 . . . . Scanalyzers . | . . . . . . Garrison Access . | . . . . . . Total Hacks 2 | . 1 . . . 1 Successful 2 | . 1 . . . 1 Failed . | . . . . . . Catastrophic . | . . . . . . Database Lockouts . | . . . . . . Manual . | . . . . . . Terminals . | . . . . . . Fabricators 1 | . . . . . 1 Repair Stations . | . . . . . . Recycling Units 1 | . 1 . . . . Scanalyzers . | . . . . . . Garrison Access . | . . . . . . Terminal Hacks . | . . . . . . Fabricator Hacks 1 | . . . . . 1 Network Status 1 | . . . . . 1 Repair Station Hacks . | . . . . . . Recycling Unit Hacks 1 | . 1 . . . . Report Inventory 1 | . 1 . . . . Scanalyzer . | . . . . . . Garrison Access Hacks . | . . . . . . Unauthorized Hacks . | . . . . . . Terminals . | . . . . . . Fabricators . | . . . . . . Repair Stations . | . . . . . . Recycling Units . | . . . . . . Scanalyzers . | . . . . . . Garrison Access . | . . . . . . Data Cores Recovered 1 | . . 1 . . . Used . | . . . . . . Hacking Detections . | . . . . . . Full Trace Events . | . . . . . . Feedback Events . | . . . . . . Feedback Blocked . | . . . . . . Robot Schematics Acquired . | . . . . . . Robots Built . | . . . . . . Authchips . | . . . . . . Time . | . . . . . . Total Robot Build Rating . | . . . . . . Part Schematics Acquired . | . . . . . . Parts Built . | . . . . . . Authchips . | . . . . . . Time . | . . . . . . Total Part Build Rating . | . . . . . . Parts Repaired . | . . . . . . Time . | . . . . . . Parts Recycled . | . . . . . . Recycled Matter . | . . . . . . Retrieved Matter . | . . . . . . Retrieved Components . | . . . . . . Parts Scanalyzed . | . . . . . . Part Schematics Acquired . | . . . . . . Parts Damaged . | . . . . . . Bothacking | -11 -10 -9 -9 -8 -7 ------------ Run | Jun Mat Mat Min Mat Fac Used RIF Installer . | . . . . . . Robots Hacked 1 | . . . . . 1 Non-combat . | . . . . . . Combat 1 | . . . . . 1 Robot Hacks Applied 1 | . . . . . 1 parse_system 1 | . . . . . 1 Relay Couplers Released . | . . . . . . Fabnet Peak Effective % . | . . . . . . Robots Rewired . | . . . . . . Allies Hacked . | . . . . . . Hacks Repelled . | . . . . . . Allies | -11 -10 -9 -9 -8 -7 -------- Run | Jun Mat Mat Min Mat Fac Total Allies 1 | . . . 1 . . Largest Group 1 | . . . 1 1 . Highest-Rated Group 31 | . . . 31 31 . Highest-Rated Ally 31 | . . . 31 31 . Total Orders . | . . . . . . Ally Attacks 51 | . . . 2 49 . Total Damage 645 | . . . 20 625 . Kills 7 | . . . 1 6 . Allies Corrupted . | . . . . . . Allies Melted . | . . . . . . Intel | -11 -10 -9 -9 -8 -7 ------- Run | Jun Mat Mat Min Mat Fac Robot Analysis Total . | . . . . . . Derelict Logs Recovered 1 | . . . 1 . . Drone Launches . | . . . . . . Drone Recoveries . | . . . . . . Exploration | -11 -10 -9 -9 -8 -7 ------------- Run | Jun Mat Mat Min Mat Fac Turns Passed 3058 | 59 359 688 100 597 1255 Spaces Moved 1671 | 65 251 378 71 230 676 Core 63 | 59 . . . . 4 Treads . | . . . . . . Legs 1608 | 6 251 378 71 230 672 Wheels . | . . . . . . Hover . | . . . . . . Flight . | . . . . . . Fastest Speed 50 | 50 120 120 120 120 120 Average Speed 144 | 56 120 120 120 202 158 Slowest Speed 750 | 120 120 120 120 340 750 Overloaded Moves . | . . . . . . Propulsion Burnouts . | . . . . . . Robots Hopped . | . . . . . . Cave-ins Triggered . | . . . . . . Exploration Rate (%) 28 | 6 51 39 23 30 19 Regions Visited 5 Branch Regions 1 Pre-discovered Areas . | . . . . . . Known Exits Taken 1 | . 1 . . . . Unknown Exits Taken 4 | 1 . 1 1 1 . Scrap Searched . | . . . . . . Spaces Dug . | . . . . . . Terrain Destroyed 179 | . . 78 25 75 1 Melee . | . . . . . . Projectile 1 | . . . . . 1 AOE 178 | . . 78 25 75 . Terrain Rammed . | . . . . . . Walls Destroyed . | . . . . . . Machines Disabled . | . . . . . . Actions | -11 -10 -9 -9 -8 -7 --------- Run | Jun Mat Mat Min Mat Fac Total 2061 | 82 284 519 78 322 776 Wait 76 | . . 23 2 51 . Move 1666 | 64 250 377 70 229 676 Hop . | . . . . . . Pick Up 41 | 7 7 10 . 3 14 Fast Attach 3 | . 2 1 . . . Attach 32 | 5 1 7 . 5 14 Detach . | . . . . . . Swap 15 | . 1 9 1 1 3 Drop 11 | . 4 6 1 . . Fire 206 | 6 17 83 4 32 64 Melee 4 | . . . . . 4 Ram . | . . . . . . Kick 7 | . 2 3 . 1 1 Crush . | . . . . . . Escape Stasis . | . . . . . . Rewire . | . . . . . . Trap . | . . . . . . Miscellaneous . | . . . . . . Route ------- -11/Junkyard -10/Materials (discovered 3 exits: *Mat / *Min x2) -9/Materials -9/Mines -8/Materials -7/Factory History --------- Turn | Location | Event 2 | -11/Junkyard | Met Revision 17 34 | -11/Junkyard | Discovered new exit (range 8) 60 | -11/Junkyard | Entered Materials 306 | -10/Materials | Build established: Mutant 310 | -10/Materials | Discovered new exit (range 8) 316 | -10/Materials | Discovered new exit (range 16) 322 | -10/Materials | Identified exit to Mines 407 | -10/Materials | Discovered new exit (range 11) 418 | -10/Materials | Identified exit to Materials 419 | -10/Materials | Entered another Materials area 419 | -9/Materials | Evolved 2 slots: Propulsion x2 1089 | -9/Materials | Discovered new exit (range 16) 1107 | -9/Materials | Entered Mines 1108 | -9/Mines | Met a Derelict testing a Signal Generator 1189 | -9/Mines | Learned Materials emergency access door positions 1200 | -9/Mines | Discovered new exit (range 7) 1207 | -9/Mines | Entered Materials 1207 | -8/Materials | Accompanied by 1 ally 1207 | -8/Materials | Evolved 2 slots: Utility x2 1553 | -8/Materials | Lost 4 parts (2n1u1w) 1759 | -8/Materials | Discovered new exit (range 16) 1804 | -8/Materials | Entered Factory 1804 | -7/Factory | Evolved 2 slots: Power x1, Weapon x1 2848 | -7/Factory | Lost 5 parts (2n1u2w) 3003 | -7/Factory | Assembled infested ambush trap array 3035 | -7/Factory | Core integrity fell below 50% 3052 | -7/Factory | Core integrity fell below 20% 3059 | -7/Factory | Destroyed by L-41 Fighter with Axe Last Messages --------------- R-06 Scavenger destroyed. C-30 ARC bursts open, deploying its payload. D-53 Grenadier unfolds itself. as-60179 destroyed. S-27 Virus destroyed. K-01 Serf cleans the Assembly Bed. as-10831 destroyed. as-31340 destroyed. as-03614 destroyed. as-59120 destroyed. as-90545 destroyed. System corrupted: ECM Suite rejected. as-58538 destroyed. K-01 Serf latches onto G-47 Trooper. K-01 Serf pushes G-47 Trooper. The unstable cave ceiling collapses. K-01 Serf pushes G-47 Trooper. K-01 Serf cleans the Assembly Bed. U-05 Engineer builds a Wall. K-01 Serf pushes G-47 Trooper. Map ----- +----------------------------------------------------+ | ?????????????????????????????????????????????????? | | ?????????????????????????????????????????????????? | | ?????????????????????????????????????????????????? | | ?????????????????????????????????????????????????? | | ?????????????????????????????????????????????????? | | ?????????????????????????????????????????????????? | | ?????????????????????????????????????????????????? | | ?????????????????????????????????????????????????? | | ?????????????????????????????????????????????????? | | ?????????????????????????????????????????????????? | | ???????????????????????" """?????????????????????? | | ?????????????????????? ???????????????????? | | ?????????????????????? ????????????????? | | ?????????????????????? ??????????????? | | ?????????????????????? ??????????????? | | ??????????????????????# ???????????????? | | ??????????????????????#u ????????????????? | | ??????????????????????# %% ????????????????? | | ??????????????????????# =! ?????????????????? | | ?????????????+##??????# ??????????????????? | | ???????????? ??# ???????????????????? | | ????????????? ?# g ????????????????????? | | ?????????????? ?# =#????????????????????? | | ??????????????? # gg#????????????????????? | | ????????????????"""" #d ==%#????????????????????? | | ????????????????"""" %gk @!*#????????????????????? | | ????????????????"""" #k l[%##???????????????????? | | ????????????????"""" % #???????????????????? | | ????????????????"""" d %##???????????????????? | | ????????????????"""" ???????????????????? | | ??????????????? % #??????????????????? | | ?????????????? ##??????????????????? | | ??????????????######## ???????????????????? | | ?????????????????????## ??????????????????? | | ??????????????????##?# #?????????????????? | | ?????????????????? ########??????????? | | ?????????????????""" # #??????????? | | ?????????????????""" # | * [ #??????????? | | ?????????????? """"" #=% # #??????????? | | ?????????????# + * %+ """""?????????????? | | ???????????????"" # = # """""?????????????? | | ??????????????????????# *% # """ ????????????? | | ??????????????????????# ! #? ????????????? | | ??????????????????????# #?"""T"""????????????? | | ???????????##?????????#% #??#####?????????????? | | #+######?? #?????????# #????????????????????? | | #?? #?????????# #????????????????????? | | #? #?????????# #????????????????????? | | ][ #?"" ########### ###########??????????? | | ] # "" #]]! # # #??????????? | +----------------------------------------------------+ Best States ------------- Heat Dissipation 34 Energy Generation 24 Energy Capacity 265 Matter Stores 300 Matter Capacity 300 Sight Range 16 Robot Scan Range 14 Terrain Scan Range 14 Terrain Scan Density 10 ECM Strength 1 Armor Coverage 150 Weapon Cycling 15 Evasion (%) 55 Target Analysis 5 Item Schematics ----------------- None Robot Schematics ------------------ None Fabricated ------------ Nothing Alien Tech Used ----------------- None Achievements -------------- It's Just You Challenges ------------ None Game ------ Seed DirtyWeldingScrap Manual? 0 Play Time 00:48:28 Cumulative 2.4 hours Start 2023.11.26 @ 00:48:42 End 2023.11.26 @ 01:43:31 Sessions 1 Manual Loads 0 Difficulty Rogue Special Mode None Game No. 9 Rogue 9 Adventurer 0 Explorer 0 Win Type - Total 0 Types 0/0/0/0/0/0/0/0/0 Lore% 0 Gallery% 5 Achievement% 4 Wizard Run 0 Options --------- ASCII 0 Keyboard 0 Movement Mouse Keybinds 0 Fullscreen 1 Font 18/SmallcapsGlow Map View 76x50 Tactical HUD 0 Map Filters NONE Filters NONE Steam 1 RUN: fc80123a-b775-4d17-b2a3-82e46a57c0dd